bitfinex-derivatives/quotes_SOLF0:USTF0_20260304
["timestamp","ask_amount","ask_price","bid_price","bid_amount"]
[1772664407878,9.831,91.533,91.484,33.30690265]
[1772664408085,9.831,91.533,91.491,33.26963393]
[1772664413580,9.832,91.524,91.491,33.26963393]
[1772664413986,9.832,91.524,91.478,33.21893499]
[1772664414387,9.832,91.517,91.478,33.21893499]
[1772664420295,9.833,91.51,91.478,33.21893499]
[1772664421999,3.43725094,91.53,91.478,33.21893499]
[1772664422299,3.43725094,91.53,91.478,12.39393499]
[1772664422700,96.0,91.539,91.478,12.39393499]
[1772664422902,3.43725094,91.54,91.478,12.39393499]
[1772664423098,9.833,91.509,91.478,12.39393499]
[1772664423297,3.43725094,91.52,91.478,12.39393499]
[1772664424002,3.43725094,91.52,91.45,3.43725094]
[1772664424304,3.43725094,91.52,91.451,22.70909163]
[1772664424600,9.834,91.502,91.457,22.70909163]
[1772664424996,9.835,91.494,91.457,22.70909163]
[1772664425603,9.835,91.488,91.457,22.70909163]
[1772664426705,9.835,91.495,91.457,22.70909163]
[1772664427299,19.661,91.537,91.457,22.70909163]
[1772664427300,9.835,91.488,91.457,22.70909163]
[1772664428997,9.835,91.496,91.457,22.70909163]
[1772664429800,3.43725094,91.51,91.457,22.70909163]
[1772664430603,3.43725094,91.53,91.471,22.75775166]
[1772664430805,3.43725094,91.54,91.471,22.75775166]
[1772664432605,9.831,91.525,91.479,22.87723894]
[1772664434210,9.83,91.536,91.481,22.90011589]
[1772664435516,9.83,91.536,91.487,22.89473789]
[1772664435916,9.831,91.529,91.487,22.89473789]
[1772664438914,9.832,91.521,91.487,22.89473789]
[1772664439717,13.26825094,91.53,91.487,22.89473789]
[1772664440621,9.831,91.53,91.487,22.89473789]
[1772664445517,9.831,91.53,91.488,22.70012972]
[1772664449619,3.43725094,91.56,91.491,22.71960198]
[1772664450326,3.43725094,91.55,91.491,22.71960198]
[1772664450927,3.43725094,91.56,91.491,22.71960198]
[1772664451519,3.43725094,91.56,91.499,22.75507608]
[1772664452126,9.829,91.548,91.499,22.75507608]
[1772664458435,9.83,91.54,91.499,22.75507608]
[1772664461238,9.831,91.531,91.499,22.75507608]
[1772664462239,9.832,91.524,91.499,22.75507608]
[1772664462634,9.831,91.532,91.499,22.75507608]
[1772664463538,9.832,91.524,91.499,22.75507608]
[1772664466648,9.832,91.524,91.48,22.40565398]
[1772664467647,9.832,91.524,91.47,3.43725094]
[1772664467648,9.832,91.524,91.483,22.39957595]
[1772664467848,9.831,91.528,91.483,22.39957595]
[1772664468246,3.43725094,91.54,91.487,9.835]
[1772664468452,3.43725094,91.55,91.491,17.52323085]
[1772664469046,9.83,91.54,91.495,17.51168551]
[1772664470152,9.83,91.54,91.498,17.52416447]
[1772664471653,9.831,91.533,91.498,17.52416447]
[1772664471852,3.43665204,91.54,91.498,17.52416447]
[1772664472754,9.83,91.54,91.498,17.52416447]
[1772664472953,3.43665204,91.55,91.498,17.52416447]
[1772664473150,6.27007852,91.54,91.498,0.00016447]
[1772664473356,9.832,91.521,91.478,9.836]
[1772664474356,9.832,91.521,91.43,19.684]
[1772664474357,9.831,91.529,91.485,9.836]
[1772664474948,9.831,91.529,91.477,9.836]
[1772664475148,9.831,91.529,91.478,9.18502078]
[1772664475354,9.832,91.521,91.478,9.18502078]
[1772664475552,2.54991367,91.529,91.478,9.18502078]
[1772664476149,9.832,91.521,91.478,9.18502078]
[1772664477956,2.54991367,91.529,91.481,9.18502078]
[1772664478156,2.90747642,91.539,91.481,9.18502078]
[1772664479459,9.831,91.527,91.484,9.18502078]
[1772664482156,9.832,91.519,91.484,9.18502078]
[1772664482359,2.90747642,91.539,91.484,9.18502078]
[1772664484452,9.831,91.527,91.484,9.18502078]
[1772664493168,5.6298267,91.526,91.484,9.18502078]
[1772664494271,9.831,91.527,91.485,9.836]
[1772664494569,9.831,91.527,91.486,9.18502078]
[1772664497375,9.831,91.527,91.487,9.835]
[1772664497669,9.831,91.527,91.488,9.18502078]
[1772664497875,5.6854372,91.53,91.489,9.835]
[1772664498177,6.36876526,91.541,91.491,9.18502078]
[1772664498877,6.36876526,91.541,91.504,11.7170129]
[1772664499070,6.60046862,91.552,91.504,11.7170129]
[1772664499269,6.60046862,91.565,91.504,11.7170129]
[1772664500378,6.72788042,91.56,91.517,9.832]
[1772664500576,6.72788042,91.56,91.517,21.5490129]
[1772664501377,9.828,91.557,91.517,21.5490129]
[1772664502180,6.94811999,91.553,91.517,11.7170129]
[1772664502376,6.94811999,91.549,91.491,11.7170129]
[1772664502776,6.94811999,91.549,91.505,11.7170129]
[1772664503479,9.829,91.547,91.507,9.833]
[1772664505073,9.829,91.547,91.507,21.5500129]
[1772664505778,9.829,91.547,91.507,11.7170129]
[1772664508283,3.43665204,91.55,91.513,11.52099534]
[1772664508485,7.94220611,91.556,91.513,11.52099534]
[1772664508682,16.18737187,91.556,91.513,11.52099534]
[1772664509182,9.828,91.554,91.514,9.833]
[1772664509484,9.828,91.554,91.515,11.52099534]
[1772664509984,9.829,91.548,91.515,11.52099534]
[1772664514690,9.829,91.546,91.506,11.52099534]
[1772664514891,18.50487502,91.546,91.506,11.52099534]
[1772664516095,8.79854765,91.538,91.492,11.52099534]
[1772664517396,9.83,91.537,91.495,9.835]
[1772664517599,9.83,91.537,91.496,11.52099534]
[1772664519388,9.83,91.537,91.499,11.52099534]
[1772664520890,8.79854765,91.538,91.499,11.52099534]
[1772664524401,9.83,91.537,91.499,11.52099534]
[1772664525309,9.829,91.544,91.502,11.52099534]
[1772664525508,8.99840592,91.543,91.502,11.52099534]
[1772664527009,9.831,91.533,91.502,11.52099534]
[1772664527307,8.99840592,91.543,91.502,11.52099534]
[1772664528508,9.83,91.54,91.502,11.52099534]
[1772664528899,9.18953378,91.539,91.502,11.52099534]
[1772664532507,9.42270435,91.536,91.502,11.52099534]
[1772664533007,9.42270435,91.536,91.471,12.43994113]
[1772664533309,9.49777527,91.523,91.471,12.43994113]
[1772664533804,9.49777527,91.523,91.451,19.679]
[1772664533805,9.49777527,91.523,91.485,12.43994113]
[1772664535408,9.49777527,91.523,91.489,9.835]
[1772664535708,9.49777527,91.523,91.489,22.27494113]
[1772664535912,9.8197412,91.519,91.471,12.43994113]
[1772664536808,9.91761045,91.55,91.471,12.43994113]
[1772664536809,9.82484923,91.509,91.471,12.43994113]
[1772664537109,12.25427069,91.499,91.44,3.43693976]
[1772664538517,12.25427069,91.496,91.451,9.839]
[1772664539112,12.25427069,91.496,91.452,12.43994113]
[1772664539614,12.25427069,91.492,91.452,12.43994113]
[1772664540406,9.835,91.49,91.452,12.43994113]
[1772664542309,22.08927069,91.49,91.452,12.43994113]
[1772664544514,9.835,91.488,91.452,12.43994113]
[1772664545413,9.835,91.488,91.411,19.688]
[1772664545414,12.25427069,91.483,91.441,9.84]
[1772664545617,12.25427069,91.483,91.439,12.43994113]
[1772664546207,9.836,91.482,91.439,12.43994113]
[1772664546411,12.25427069,91.481,91.433,9.841]
[1772664547415,9.836,91.48,91.433,9.841]
[1772664547609,12.25427069,91.479,91.433,9.841]
[1772664547808,12.25427069,91.479,91.433,22.28094113]
[1772664548210,12.25427069,91.479,91.437,9.841]
[1772664549219,9.837,91.477,91.437,9.841]
[1772664549415,12.25427069,91.476,91.437,9.841]
[1772664549920,9.837,91.473,91.434,12.43994113]
[1772664550116,12.25427069,91.472,91.434,12.43994113]
[1772664550425,12.25427069,91.472,91.421,12.43994113]
[1772664551218,12.25427069,91.456,91.398,12.43994113]
[1772664551521,12.25427069,91.419,91.36,3.43693976]
[1772664551820,12.25427069,91.419,91.361,9.849]
[1772664552318,12.25427069,91.419,91.36,3.43693976]
[1772664552515,12.25427069,91.415,91.36,3.43693976]
[1772664553314,12.25427069,91.415,91.361,12.43994113]
[1772664553517,12.25427069,91.407,91.35,3.43693976]
[1772664553919,19.679,91.452,91.331,12.43994113]
[1772664553920,12.25427069,91.399,91.331,12.43994113]
[1772664554126,12.25427069,91.389,91.331,12.43994113]
[1772664555422,12.25427069,91.409,91.351,12.43994113]
[1772664556122,12.25427069,91.409,91.352,9.85]
[1772664556318,12.25427069,91.409,91.353,12.43994113]
[1772664556524,12.25427069,91.422,91.361,12.43994113]
[1772664556823,12.25427069,91.422,91.381,12.43994113]
[1772664557016,12.25427069,91.435,91.381,12.43994113]
[1772664558426,12.25427069,91.435,91.383,13.53156955]
[1772664558628,12.25427069,91.435,91.391,13.53156955]
[1772664559121,13.99998711,91.45,91.408,13.53156955]
[1772664559325,13.99998711,91.468,91.408,13.53156955]
[1772664560424,13.99998711,91.468,91.411,13.53156955]
[1772664561330,13.99998711,91.468,91.413,13.53156955]
[1772664563131,13.99998711,91.489,91.434,23.37256955]
[1772664563332,13.99998711,91.489,91.435,13.53156955]
[1772664563726,13.99998711,91.489,91.448,13.53156955]
[1772664564127,3.43693976,91.5,91.448,13.53156955]
[1772664564323,13.99998711,91.503,91.448,13.53156955]
[1772664564630,13.99998711,91.503,91.453,13.53156955]
[1772664565532,13.99998711,91.503,91.459,9.838]
[1772664566539,13.99998711,91.503,91.453,13.53156955]
[1772664566540,13.70760456,91.517,91.468,14.01251888]
[1772664567433,13.70760456,91.517,91.47,9.837]
[1772664567632,13.70760456,91.517,91.471,14.01251888]
[1772664572136,13.70760456,91.517,91.473,9.837]
[1772664572539,3.43693976,91.51,91.473,9.837]
[1772664572738,13.70760456,91.517,91.473,9.837]
[1772664577337,9.831,91.525,91.479,14.01251888]
[1772664577533,13.70760456,91.529,91.479,14.01251888]
[1772664577938,13.70760456,91.529,91.482,14.01251888]
[1772664579643,13.70760456,91.529,91.485,14.01251888]
[1772664581538,13.70760456,91.529,91.489,14.01251888]
[1772664585246,179.0,91.593,91.445,19.68]
[1772664585247,9.83,91.543,91.491,14.01251888]
[1772664585539,13.70760456,91.544,91.491,14.01251888]
[1772664586548,13.70760456,91.544,91.501,14.01251888]
[1772664587351,13.70760456,91.544,91.505,9.834]
[1772664587947,13.70760456,91.544,91.505,23.84651888]
[1772664588348,9.829,91.551,91.49,3.43693976]
[1772664588349,9.829,91.551,91.509,9.833]
[1772664588545,9.829,91.551,91.51,14.56841853]
[1772664589253,13.70760456,91.555,91.512,9.833]
[1772664589547,3.43693976,91.56,91.512,9.833]
[1772664589548,24.963528,91.554,91.512,9.833]
[1772664589756,15.135528,91.553,91.512,9.833]
[1772664591847,15.135528,91.553,91.513,14.56841853]
[1772664592753,15.135528,91.553,91.514,9.833]
[1772664593156,15.135528,91.553,91.514,24.40141853]
[1772664593850,15.135528,91.553,91.5,3.43607214]
[1772664593851,15.135528,91.558,91.518,14.56841853]
[1772664594257,15.135528,91.549,91.508,9.833]
[1772664594955,15.135528,91.549,91.508,24.40141853]
[1772664595456,15.135528,91.549,91.509,14.56841853]
[1772664595752,9.828,91.555,91.516,14.56841853]
[1772664595951,3.43607214,91.56,91.516,14.56841853]
[1772664595952,9.828,91.553,91.516,14.56841853]
[1772664596257,15.135528,91.552,91.516,14.56841853]
[1772664596753,15.135528,91.552,91.5,3.43607214]
[1772664596957,15.135528,91.552,91.501,14.56841853]
[1772664597256,15.135528,91.545,91.501,14.56841853]
[1772664598559,9.83,91.54,91.501,14.56841853]
[1772664599558,15.135528,91.539,91.501,14.56841853]
[1772664600760,15.135528,91.536,91.501,14.56841853]
[1772664600961,15.135528,91.536,91.503,9.834]
[1772664601664,24.964528,91.547,91.509,9.833]
[1772664601864,15.135528,91.547,91.509,9.833]
[1772664603065,15.135528,91.547,91.513,9.833]
[1772664603866,15.135528,91.547,91.51,14.56841853]
[1772664604059,15.135528,91.546,91.51,14.56841853]
[1772664604462,15.135528,91.539,91.491,14.56841853]
[1772664605268,15.135528,91.539,91.496,14.56841853]
[1772664606364,15.135528,91.539,91.498,14.56841853]
[1772664607268,15.135528,91.539,91.5,14.56841853]
[1772664607568,9.828,91.555,91.5,18.00449067]
[1772664608367,15.135528,91.554,91.502,14.56841853]
[1772664609366,15.135528,91.554,91.505,9.834]
[1772664609561,15.135528,91.554,91.506,14.56841853]
[1772664611464,15.135528,91.554,91.508,14.56841853]
[1772664613363,15.135528,91.549,91.494,14.56841853]
[1772664614570,15.135528,91.549,91.497,14.56841853]
[1772664615671,15.135528,91.545,91.493,9.835]
[1772664615972,15.135528,91.539,91.484,14.56841853]
[1772664616371,15.135528,91.539,91.486,9.836]
[1772664616567,15.135528,91.539,91.487,14.56841853]
[1772664618370,15.135528,91.539,91.489,9.835]
[1772664618977,15.135528,91.539,91.495,9.835]
[1772664619171,15.135528,91.539,91.496,15.24259138]
[1772664620578,15.135528,91.539,91.497,9.834]
[1772664623075,9.826,91.578,91.522,15.24259138]
[1772664623281,8.22817694,91.586,91.522,15.24259138]
[1772664623479,3.43607214,91.59,91.522,15.24259138]
[1772664623880,3.43607214,91.59,91.53,18.67866352]
[1772664624575,9.825,91.589,91.536,9.83]
[1772664625172,14.43290029,91.585,91.536,9.83]
[1772664626181,3.43607214,91.58,91.536,9.83]
[1772664626480,14.44000241,91.579,91.542,9.829]
[1772664626679,14.44000241,91.579,91.543,15.33214554]
[1772664627479,14.44000241,91.579,91.534,9.83]
[1772664628082,14.44000241,91.579,91.531,15.33214554]
[1772664628676,14.44000241,91.579,91.542,9.829]
[1772664629481,14.44000241,91.579,91.531,15.33214554]
[1772664629879,14.44000241,91.579,91.544,9.829]
[1772664631077,14.44000241,91.594,91.552,9.828]
[1772664631280,13.24792944,91.655,91.54,3.43607214]
[1772664631281,14.44000241,91.603,91.553,15.33214554]
[1772664632777,14.44000241,91.599,91.53,3.43607214]
[1772664632984,14.44000241,91.589,91.531,15.33214554]
[1772664633284,14.44000241,91.589,91.49,19.671]
[1772664633285,14.44000241,91.589,91.541,15.33214554]
[1772664633677,14.44000241,91.589,91.555,9.828]
[1772664633877,14.44000241,91.609,91.556,15.33214554]
[1772664635383,14.44000241,91.608,91.559,15.33214554]
[1772664635984,14.44000241,91.608,91.562,15.33214554]
[1772664637385,14.44000241,91.608,91.568,9.827]
[1772664639187,14.44000241,91.608,91.569,15.33214554]
[1772664640079,266.29577485,91.657,91.569,15.33214554]
[1772664640080,9.821,91.626,91.572,9.826]
[1772664640285,3.43607214,91.62,91.573,15.33214554]
[1772664640484,14.44000241,91.625,91.573,15.33214554]
[1772664641384,3.43607214,91.63,91.575,9.826]
[1772664641385,14.44000241,91.623,91.575,9.826]
[1772664641584,266.29577485,91.657,91.573,15.33214554]
[1772664641585,14.44000241,91.619,91.573,15.33214554]
[1772664642290,14.44000241,91.619,91.575,9.826]
[1772664643090,14.44000241,91.619,91.56,3.43607214]
[1772664643091,14.44000241,91.619,91.576,15.33214554]
[1772664644389,9.822,91.616,91.576,15.33214554]
[1772664644589,14.44000241,91.615,91.576,15.33214554]
[1772664645383,9.822,91.612,91.576,15.33214554]
[1772664645583,24.26200241,91.612,91.576,15.33214554]
[1772664646487,14.44000241,91.612,91.576,15.33214554]
[1772664648094,9.822,91.611,91.576,15.33214554]
[1772664648394,14.44000241,91.612,91.576,15.33214554]
[1772664648588,24.26200241,91.612,91.576,15.33214554]
[1772664648894,15.45207359,91.611,91.576,15.33214554]
[1772664649489,9.823,91.608,91.576,15.33214554]
[1772664651400,15.45207359,91.607,91.568,15.79119519]
[1772664651793,15.45207359,91.607,91.57,15.79119519]
[1772664651998,9.823,91.605,91.57,15.79119519]
[1772664652297,15.45207359,91.607,91.57,15.79119519]
[1772664652498,25.27507359,91.607,91.57,15.79119519]
[1772664652699,15.45207359,91.606,91.57,15.79119519]
[1772664653200,15.45207359,91.606,91.55,3.43191517]
[1772664653201,15.45207359,91.604,91.559,15.79119519]
[1772664653690,9.825,91.583,91.541,15.79119519]
[1772664654193,152.73,91.651,91.521,15.79119519]
[1772664654194,15.45207359,91.569,91.521,15.79119519]
[1772664654500,15.45207359,91.559,91.507,15.79119519]
[1772664654898,15.45207359,91.549,91.507,15.79119519]
[1772664655202,15.45207359,91.549,91.492,15.79119519]
[1772664655493,19.646,91.604,91.492,15.79119519]
[1772664655494,3.43191517,91.53,91.492,15.79119519]
[1772664655699,18.88398876,91.53,91.47,3.43191517]
[1772664655899,18.88398876,91.53,91.471,15.79119519]
[1772664656095,25.28307359,91.528,91.475,15.79119519]
[1772664656497,9.831,91.525,91.476,9.837]
[1772664656697,15.45207359,91.549,91.491,15.79119519]
[1772664658499,15.45207359,91.549,91.5,9.834]
[1772664658997,15.45207359,91.549,91.502,9.834]
[1772664659299,15.45207359,91.549,91.502,25.62519519]
[1772664662210,15.45207359,91.549,91.51,9.833]
[1772664663316,15.45207359,91.549,91.504,9.834]
[1772664663610,15.45207359,91.549,91.441,153.079]
[1772664663611,15.45207359,91.549,91.486,15.79119519]
[1772664663816,15.45207359,91.539,91.47,3.43191517]
[1772664664016,15.45207359,91.519,91.464,9.838]
[1772664664217,15.45207359,91.509,91.457,15.79119519]
[1772664664416,15.45207359,91.489,91.431,15.79119519]
[1772664664613,15.45207359,91.489,91.36,153.215]
[1772664664614,15.45207359,91.479,91.42,3.43191517]
[1772664664819,15.45207359,91.479,91.421,15.79119519]
[1772664665014,15.45207359,91.479,91.43,3.43191517]
[1772664665317,15.45207359,91.479,91.421,15.79119519]
[1772664665518,15.45207359,91.469,91.407,15.79119519]
[1772664666018,15.45207359,91.439,91.375,15.79119519]
[1772664666317,152.974,91.505,91.375,15.79119519]
[1772664666318,15.45207359,91.429,91.375,15.79119519]
[1772664666817,15.45207359,91.429,91.38,3.43191517]
[1772664667017,15.45207359,91.429,91.381,15.79119519]
[1772664667316,15.45207359,91.429,91.368,9.848]
[1772664667317,15.45207359,91.429,91.37,3.43191517]
[1772664667511,15.45207359,91.429,91.365,15.79119519]
[1772664667710,15.45207359,91.419,91.35,3.43191517]
[1772664667908,15.45207359,91.409,91.35,3.43191517]
[1772664668110,15.45207359,91.409,91.35,19.22311036]
[1772664670516,153.032,91.47,91.3,19.712]
[1772664670517,15.45207359,91.429,91.371,15.79119519]
[1772664670718,15.45207359,91.446,91.4,3.43191517]
[1772664670920,15.45207359,91.469,91.41,3.43191517]
[1772664671419,15.45207359,91.469,91.42,3.43191517]
[1772664671615,9.91761045,91.578,91.42,3.43191517]
[1772664671616,15.45207359,91.486,91.433,9.841]
[1772664671820,15.45207359,91.486,91.433,25.63219519]
[1772664672221,15.45207359,91.486,91.438,9.841]
[1772664672622,15.45207359,91.486,91.41,7.37312866]
[1772664672623,15.45207359,91.486,91.439,15.79119519]
[1772664673417,15.45207359,91.513,91.443,15.79119519]
[1772664675625,15.45207359,91.536,91.456,15.79119519]
[1772664676018,15.45207359,91.536,91.472,15.79119519]
[1772664677624,15.45207359,91.536,91.483,9.836]
[1772664677825,15.45207359,91.552,91.484,15.79119519]
[1772664678022,15.45207359,91.552,91.49,15.79119519]
[1772664678822,15.45207359,91.552,91.491,9.835]
[1772664679622,15.45207359,91.552,91.491,27.41537944]
[1772664680027,15.45207359,91.552,91.492,17.58037944]
[1772664680831,15.45207359,91.552,91.495,9.835]
[1772664683832,15.45207359,91.552,91.499,9.834]
[1772664685029,15.45207359,91.552,91.507,9.833]
[1772664685827,16.66272753,91.55,91.496,9.834]
[1772664687437,16.79281781,91.548,91.496,9.834]
[1772664687935,16.79281781,91.548,91.498,9.834]
[1772664689633,16.79281781,91.545,91.45,7.37312866]
[1772664689838,16.79281781,91.545,91.451,15.88555354]
[1772664690232,16.79281781,91.526,91.474,15.88555354]
[1772664690840,16.79281781,91.526,91.431,15.88555354]
[1772664691437,16.79281781,91.524,91.455,15.88555354]
[1772664691840,16.79281781,91.519,91.431,15.88555354]
[1772664692039,16.79281781,91.491,91.434,25.72655354]
[1772664692240,16.79281781,91.491,91.435,15.88555354]
[1772664693441,16.79281781,91.488,91.438,9.841]
[1772664694339,9.836,91.486,91.435,15.88555354]
[1772664694839,26.62881781,91.486,91.435,15.88555354]
[1772664695141,26.62881781,91.486,91.361,153.214]
[1772664695142,3.44112117,91.47,91.427,15.88555354]
[1772664695543,20.23393898,91.47,91.427,15.88555354]
[1772664695742,20.23393898,91.47,91.421,15.88555354]
[1772664695743,16.79281781,91.47,91.421,15.88555354]
[1772664696040,16.79281781,91.485,91.43,15.88555354]
[1772664696240,16.79281781,91.471,91.372,15.88555354]
[1772664696440,16.79281781,91.471,91.411,15.88555354]
[1772664696639,3.44112117,91.47,91.411,15.88555354]
[1772664696942,16.79281781,91.471,91.411,15.88555354]
[1772664697144,16.79281781,91.471,91.422,9.842]
[1772664698439,16.79281781,91.471,91.422,15.88555354]
[1772664698645,16.79281781,91.471,91.43,9.842]
[1772664698846,3.44112117,91.47,91.422,15.88555354]
[1772664699044,16.79281781,91.469,91.422,15.88555354]
[1772664699540,16.79281781,91.489,91.422,15.88555354]
[1772664699747,16.79281781,91.489,91.439,9.841]
[1772664700445,16.79281781,91.487,91.43,9.842]
[1772664700649,16.79281781,91.487,91.422,15.88555354]
[1772664701449,16.79281781,91.487,91.437,9.841]
[1772664701649,16.79281781,91.484,91.422,15.88555354]
[1772664703349,9.837,91.475,91.425,9.842]
[1772664703650,16.79281781,91.474,91.425,9.842]
[1772664703954,16.79281781,91.469,91.415,25.72855354]
[1772664704252,16.79281781,91.469,91.416,15.88555354]
[1772664704449,16.79281781,91.469,91.43,9.842]
[1772664704951,16.79281781,91.483,91.429,15.88555354]
[1772664705152,16.79281781,91.483,91.445,9.84]
[1772664707648,16.79281781,91.483,91.429,15.88555354]
[1772664708349,16.79281781,91.483,91.414,15.88555354]
[1772664708548,16.79281781,91.483,91.381,16.67628976]
[1772664708852,16.40709193,91.447,91.381,16.67628976]
[1772664710555,16.40709193,91.447,91.398,9.845]
[1772664715156,16.40709193,91.447,91.405,9.844]
[1772664720657,16.40709193,91.444,91.396,9.845]
[1772664721658,9.841,91.437,91.394,16.67628976]
[1772664721863,16.40709193,91.436,91.388,9.846]
[1772664722565,16.40709193,91.427,91.38,16.67628976]
[1772664723259,16.40709193,91.449,91.38,20.12064339]
[1772664724162,16.40709193,91.446,91.399,9.845]
[1772664725564,16.40709193,91.444,91.391,9.846]
[1772664725765,16.40709193,91.439,91.38,16.67628976]
[1772664726968,16.40709193,91.467,91.401,16.67628976]
[1772664727162,16.40709193,91.467,91.41,3.44435363]
[1772664727766,16.40709193,91.467,91.401,16.67628976]
[1772664728360,16.40709193,91.457,91.402,16.67628976]
[1772664729364,9.839,91.454,91.402,16.67628976]
[1772664730570,9.84,91.446,91.402,16.67628976]
[1772664731069,16.40709193,91.44,91.39,3.44435363]
[1772664731270,19.85144556,91.44,91.388,16.67628976]
[1772664731866,9.841,91.434,91.388,16.67628976]
[1772664732265,16.40709193,91.44,91.391,16.67628976]
[1772664732469,9.842,91.428,91.391,16.67628976]
[1772664732768,16.40709193,91.427,91.377,16.67628976]
[1772664734272,16.40709193,91.427,91.365,9.849]
[1772664734673,8.83848983,91.467,91.35,3.44435363]
[1772664734674,16.40709193,91.408,91.35,3.44435363]
[1772664734973,16.40709193,91.408,91.348,16.67628976]
[1772664735671,16.40709193,91.408,91.351,16.67628976]
[1772664735872,9.845,91.4,91.353,16.67628976]
[1772664736766,9.846,91.394,91.353,16.67628976]
[1772664740675,16.40709193,91.399,91.353,16.67628976]
[1772664740979,16.40709193,91.399,91.35,3.44435363]
[1772664741377,16.83289289,91.397,91.34,20.67095651]
[1772664742383,9.846,91.394,91.35,17.22660288]
[1772664742584,16.83289289,91.397,91.35,17.22660288]
[1772664742783,16.83289289,91.397,91.35,20.67095651]
[1772664742983,16.83289289,91.395,91.35,20.67095651]
[1772664744482,9.846,91.394,91.351,9.85]
[1772664745482,26.67889289,91.394,91.351,9.85]
[1772664748884,26.67889289,91.394,91.351,26.31098969]
[1772664752789,26.67889289,91.394,91.352,16.46098969]
[1772664753089,16.83289289,91.394,91.352,16.46098969]
[1772664756086,9.846,91.387,91.335,9.852]
[1772664756288,15.96108441,91.386,91.335,16.46098969]
[1772664756486,15.96108441,91.386,91.34,19.90534332]
[1772664756889,15.96108441,91.386,91.35,3.44435363]
[1772664757286,15.96108441,91.386,91.35,19.90534332]
[1772664758393,15.96108441,91.386,91.35,16.46098969]
[1772664758695,15.96108441,91.386,91.351,9.85]
[1772664758888,15.96108441,91.386,91.351,26.31098969]
[1772664761196,9.845,91.397,91.356,16.46098969]
[1772664761698,25.80608441,91.397,91.356,16.46098969]
[1772664761899,15.96108441,91.396,91.356,16.46098969]
[1772664762400,15.96108441,91.396,91.357,9.849]
[1772664762700,15.96108441,91.396,91.358,16.46098969]
[1772664764202,15.96108441,91.413,91.367,16.46098969]
[1772664764401,15.96108441,91.413,91.371,16.46098969]
[1772664765504,15.96108441,91.413,91.374,9.848]
[1772664767799,15.96108441,91.426,91.381,9.847]
[1772664768008,15.96108441,91.426,91.382,16.46098969]
[1772664768706,15.96108441,91.426,91.386,16.19613725]
[1772664769405,15.96108441,91.426,91.387,9.846]
[1772664769606,15.96108441,91.426,91.387,26.04213725]
[1772664769999,15.96108441,91.426,91.388,16.19613725]
[1772664770405,9.841,91.437,91.391,16.19613725]
[1772664770605,15.968619,91.439,91.391,16.19613725]
[1772664771402,15.968619,91.439,91.401,9.845]
[1772664775112,15.968619,91.439,91.401,26.04113725]
[1772664775313,15.968619,91.439,91.403,26.04013725]
[1772664775512,15.968619,91.439,91.403,16.19613725]
[1772664776514,9.841,91.437,91.403,16.19613725]
[1772664776913,15.968619,91.429,91.381,16.19613725]
[1772664778006,3.44477578,91.42,91.381,16.19613725]
[1772664778212,9.843,91.415,91.381,16.19613725]
[1772664778712,3.44477578,91.42,91.381,16.19613725]
[1772664779208,19.41339478,91.42,91.381,16.19613725]
[1772664779416,15.968619,91.416,91.361,16.19613725]
[1772664780509,9.844,91.405,91.361,16.19613725]
[1772664780815,15.968619,91.404,91.361,16.19613725]
[1772664781510,9.845,91.395,91.361,16.19613725]
[1772664781911,3.44477578,91.41,91.34,3.44477578]
[1772664781912,9.846,91.39,91.344,9.851]
[1772664782107,25.814619,91.39,91.341,16.19613725]
[1772664782311,15.968619,91.389,91.341,16.19613725]
[1772664783410,15.968619,91.386,91.341,16.19613725]
[1772664784214,9.845,91.396,91.346,16.19613725]
[1772664784417,15.968619,91.395,91.346,16.19613725]
[1772664785518,15.968619,91.393,91.346,16.19613725]
[1772664788819,9.846,91.389,91.346,16.19613725]
[1772664789019,15.968619,91.388,91.346,16.19613725]
[1772664789220,15.968619,91.388,91.348,16.19613725]
[1772664792725,15.968619,91.388,91.342,9.851]
[1772664793526,15.968619,91.388,91.342,26.04713725]
[1772664793924,15.968619,91.388,91.343,16.19613725]
[1772664794726,9.846,91.387,91.343,16.19613725]
[1772664795123,9.847,91.384,91.343,16.19613725]
[1772664795623,15.968619,91.381,91.329,16.19613725]
[1772664795829,15.968619,91.379,91.329,16.19613725]
[1772664796035,19.688,91.41,91.311,16.19613725]